bitfinex/quotes_BTCUSD_20250221
["timestamp","ask_amount","ask_price","bid_price","bid_amount"]
[1740161087212,0.00013011,96948.0,96947.0,0.01954085]
[1740161087213,0.00113011,96948.0,96947.0,0.01954085]
[1740161087653,0.00113011,96948.0,96947.0,0.005]
[1740161087913,0.15113011,96948.0,96947.0,0.005]
[1740161088665,0.15213011,96948.0,96947.0,0.005]
[1740161088909,0.00213011,96948.0,96947.0,0.005]
[1740161089117,0.00113011,96948.0,96947.0,0.10764569]
[1740161089316,0.00213011,96948.0,96947.0,0.11718654]
[1740161089544,0.00013011,96948.0,96947.0,0.11718654]
[1740161089888,0.00113011,96948.0,96947.0,0.01454085]
[1740161090318,0.00213011,96948.0,96947.0,0.01454085]
[1740161092522,0.00313011,96948.0,96947.0,0.16926385]
[1740161092712,0.00313011,96948.0,96947.0,0.01454085]
[1740161092916,0.00313011,96948.0,96947.0,0.1705015]
[1740161093288,0.00313011,96948.0,96947.0,0.27314715]
[1740161093487,0.00013011,96948.0,96947.0,0.27190954]
[1740161093599,0.00113011,96948.0,96947.0,0.11718654]
[1740161093818,0.00298031,96948.0,96947.0,0.01454085]
[1740161094262,0.00198031,96948.0,96947.0,0.01454085]
[1740161095555,0.00098031,96948.0,96947.0,0.01454085]
[1740161095758,0.00198031,96948.0,96947.0,0.02054085]
[1740161096390,0.00098031,96948.0,96947.0,0.11718654]
[1740161096588,0.00198031,96948.0,96947.0,0.16926385]
[1740161096745,0.00198031,96948.0,96947.0,0.01454085]
[1740161096950,0.00098031,96948.0,96947.0,0.16926385]
[1740161097267,0.00098031,96948.0,96947.0,0.17126385]
[1740161098472,0.15570231,96948.0,96947.0,0.01654085]
[1740161098683,0.00098031,96948.0,96947.0,0.01654085]
[1740161098895,0.00098031,96948.0,96947.0,0.01454085]
[1740161099414,0.00098031,96948.0,96947.0,0.01854085]
[1740161099766,0.00098031,96948.0,96947.0,0.01454085]
[1740161099974,0.00098031,96948.0,96947.0,0.01654085]
[1740161100375,0.00098031,96948.0,96947.0,0.17126385]
[1740161100963,0.00098031,96948.0,96947.0,0.27390954]
[1740161102502,0.00198031,96948.0,96947.0,0.27590954]
[1740161102716,0.00198031,96948.0,96947.0,0.44390954]
[1740161102938,0.0008512,97000.0,96979.0,0.154672]
[1740161103151,0.0008512,97000.0,96979.0,0.27185854]
[1740161103360,0.00098115,96980.0,96979.0,0.27185854]
[1740161104201,0.0008512,97000.0,96981.0,0.02]
[1740161104411,0.0008512,97000.0,96999.0,0.2517355]
[1740161104627,0.00128594,97000.0,96999.0,0.35438119]
[1740161105482,0.0008504,97015.0,97012.0,0.15462]
[1740161105688,0.0008504,97015.0,97013.0,0.154618]
[1740161105904,0.0008504,97015.0,97013.0,0.27180454]
[1740161106111,0.01046325,97048.0,97013.0,0.27180454]
[1740161106112,0.01046325,97048.0,97018.0,0.33915085]
[1740161106316,0.206054,97062.0,97018.0,0.44179654]
[1740161106516,0.09083242,97019.0,97018.0,0.44179654]
[1740161106784,0.1508499,97067.0,97044.0,0.154569]
[1740161107001,0.0008499,97067.0,97044.0,0.27175554]
[1740161108064,0.0008499,97067.0,97044.0,0.01454085]
[1740161108233,0.15,97059.0,97012.0,0.08255465]
[1740161108457,0.154583,97036.0,97019.0,0.25725369]
[1740161108652,0.206103,97039.0,97019.0,0.10264569]
[1740161108948,0.154582,97036.0,97021.0,0.154605]
[1740161109181,0.154582,97036.0,97022.0,0.01454085]
[1740161109383,0.206096,97042.0,97020.0,0.01454085]
[1740161109563,0.154569,97044.0,97020.0,0.01454085]
[1740161109711,0.24535715,97060.0,97022.0,0.01454085]
[1740161109712,0.002,97036.0,97022.0,0.01454085]
[1740161109928,0.154579,97038.0,97022.0,0.16914385]
[1740161110135,0.002,97036.0,97022.0,0.16914385]
[1740161110346,0.004,97036.0,97022.0,0.01454085]
[1740161110571,0.002,97036.0,97020.0,0.01454085]
[1740161110751,0.15458,97038.0,97023.0,0.01454085]
[1740161111117,0.003,97038.0,97030.0,0.15459]
[1740161111334,0.003,97038.0,97024.0,0.30877969]
[1740161111543,0.003,97038.0,96790.0,1.1919]
[1740161111544,0.003,97038.0,97033.0,0.01454085]
[1740161111749,0.003,97038.0,97036.0,0.01454085]
[1740161111953,0.003,97038.0,97037.0,0.34428648]
[1740161112165,0.003,97038.0,97037.0,0.60151217]
[1740161112576,0.003,97038.0,97037.0,0.27176654]
[1740161112785,0.0008508,97045.0,97044.0,0.304569]
[1740161112995,0.0008508,97045.0,97044.0,0.27175554]
[1740161113595,0.0008508,97045.0,97044.0,0.01454085]
[1740161113803,0.1554178,97045.0,97044.0,0.01454085]
[1740161114013,0.1554178,97045.0,97036.0,0.08244235]
[1740161114014,0.0008508,97045.0,97036.0,0.08244235]
[1740161114248,0.0008508,97045.0,97044.0,0.003]
[1740161115117,0.1554178,97045.0,97044.0,0.003]
[1740161115313,0.1554178,97045.0,97044.0,0.005]
[1740161115529,0.0008508,97045.0,97027.0,0.01454085]
[1740161115842,0.154574,97041.0,97027.0,0.16913585]
[1740161116048,0.0008508,97045.0,97003.0,0.15]
[1740161116198,0.0008508,97045.0,97009.0,0.206165]
[1740161116402,0.0008508,97045.0,96999.0,1.09703628]
[1740161116403,0.24535715,97030.0,96999.0,1.09703628]
[1740161116606,0.24535715,97030.0,97003.0,0.15476437]
[1740161116843,0.206119,97032.0,97004.0,0.154632]
[1740161117037,0.10264569,97044.0,97003.0,0.00013037]
[1740161117038,0.15,97029.0,97003.0,0.00013037]
[1740161117247,0.15,97029.0,96999.0,0.08255465]
[1740161117248,0.15,97027.0,96999.0,0.08255465]
[1740161117407,0.15,97025.0,96999.0,0.08255465]
[1740161117773,0.15,97023.0,96999.0,0.08255465]
[1740161117910,0.154621,97011.0,96999.0,0.08255465]
[1740161118134,0.15,97026.0,97001.0,0.01454085]
[1740161118340,0.15,97022.0,97003.0,0.01454085]
[1740161118663,0.004,97025.0,97002.0,0.01454085]
[1740161118904,0.20615,97017.0,97016.0,0.001]
[1740161119141,0.360762,97017.0,97016.0,0.001]
[1740161119349,0.15461,97018.0,97017.0,0.01454085]
[1740161119550,0.00645102,97021.0,96999.0,0.08255465]
[1740161119751,0.206147,97018.0,96999.0,0.08255465]
[1740161119960,0.25264569,97017.0,96974.0,0.20624]
[1740161120161,0.154651,96993.0,96971.0,0.28880065]
[1740161120404,0.154657,96989.0,96971.0,0.23723865]
[1740161120613,0.206189,96998.0,96972.0,0.10264569]
[1740161120822,0.206198,96994.0,96972.0,0.10264569]
[1740161121033,0.154654,96991.0,96973.0,0.154681]
[1740161121237,0.18816792,97009.0,96973.0,0.11718654]
[1740161121417,0.18816792,97009.0,96974.0,0.01454085]
[1740161121671,0.206168,97008.0,96974.0,0.01454085]
[1740161121902,0.154653,96991.0,96974.0,0.16922085]
[1740161122107,0.007,96994.0,96974.0,0.01454085]
[1740161122312,0.2062,96993.0,96973.0,0.00043474]
[1740161122535,0.007,96994.0,96973.0,0.00043474]
[1740161122536,0.15468,96974.0,96973.0,0.00043474]
[1740161122975,0.154676,96977.0,96973.0,0.00143474]
[1740161123190,0.154679,96975.0,96973.0,0.00143474]
[1740161123624,0.0788,96974.0,96973.0,0.00143474]
[1740161123849,0.23348,96974.0,96973.0,0.00143474]
[1740161124054,0.23993323,96974.0,96973.0,0.00143474]
[1740161124362,0.23993323,96974.0,96973.0,0.00043474]
[1740161125188,0.24093323,96974.0,96973.0,0.00043474]
[1740161125599,0.25125546,96974.0,96973.0,0.00043474]
[1740161126027,0.26258539,96974.0,96973.0,0.00043474]
[1740161126241,0.36523108,96974.0,96973.0,0.00043474]
[1740161127357,0.36423108,96974.0,96973.0,0.00043474]
[1740161127559,0.26158539,96974.0,96973.0,0.00043474]
[1740161127769,0.10690539,96974.0,96973.0,0.00043474]
[1740161127920,0.10257546,96974.0,96973.0,0.00043474]
[1740161128134,0.09557546,96974.0,96973.0,0.00043474]
[1740161128337,0.25725546,96974.0,96973.0,0.00043474]
[1740161128551,0.10957546,96974.0,96973.0,0.00043474]
[1740161128755,0.02377546,96974.0,96973.0,0.00043474]
[1740161129216,0.01845323,96974.0,96973.0,0.00043474]
[1740161129488,0.01145323,96974.0,96973.0,0.27230328]
[1740161129693,0.01645323,96974.0,96973.0,0.42230328]
[1740161129905,0.01645323,96974.0,96973.0,0.43285376]
[1740161130095,0.01032223,96980.0,96979.0,0.344672]
[1740161130096,2.3e-07,96980.0,96979.0,0.344672]
[1740161130348,0.0008496,97011.0,96988.0,0.38710035]
[1740161130551,0.0008496,97011.0,97010.0,0.154623]
[1740161130762,0.0008496,97011.0,97010.0,0.27180954]
[1740161130963,0.0008496,97011.0,97010.0,0.42180954]
[1740161131698,0.0008496,97011.0,97010.0,5.22669854]
[1740161131869,0.00097985,97011.0,97010.0,0.83105189]
[1740161132102,0.00097985,97011.0,97010.0,0.80035189]
[1740161132306,0.00097985,97011.0,97010.0,0.80535189]
[1740161132510,0.00097985,97011.0,97010.0,0.50925189]
[1740161132708,0.00097985,97011.0,97010.0,0.50625189]
[1740161133132,0.00097985,97011.0,97010.0,0.50725189]
[1740161133133,0.00197985,97011.0,97010.0,0.50725189]
[1740161134468,0.00197985,97011.0,97010.0,0.51425189]
[1740161134697,0.00197985,97011.0,97010.0,0.50725189]
[1740161134874,0.00097985,97011.0,97010.0,0.51125189]
[1740161135110,0.00197985,97011.0,97010.0,0.51825189]
[1740161135730,0.00097985,97011.0,97010.0,0.51125189]
[1740161135942,0.00197985,97011.0,97010.0,0.53825189]
[1740161136151,0.00197985,97011.0,97010.0,5.34314089]
[1740161136352,0.00197985,97011.0,97010.0,5.35410089]
[1740161136655,0.00197985,97011.0,97010.0,5.37410089]
[1740161136894,0.00097985,97011.0,97010.0,5.36710089]
[1740161138095,0.00097985,97011.0,97010.0,5.37410089]
[1740161138298,0.00097985,97011.0,97010.0,4.58351189]
[1740161138503,0.00097985,97011.0,97010.0,1.74831189]
[1740161138875,0.00097985,97011.0,97010.0,1.78231189]
[1740161139161,0.00097985,97011.0,97010.0,1.78931189]
[1740161139406,0.00097985,97011.0,97010.0,1.78231189]
[1740161139813,0.00097985,97011.0,97010.0,1.76931189]
[1740161140039,0.00097985,97011.0,97010.0,1.78931189]
[1740161140678,0.00097985,97011.0,97010.0,1.76931189]
[1740161141085,0.00097985,97011.0,97010.0,1.76231189]
[1740161141289,0.0008508,97045.0,97010.0,1.76231189]
[1740161141290,0.0008508,97045.0,97044.0,0.154569]
[1740161141444,0.00098112,97045.0,97044.0,0.27175554]
[1740161142052,0.00098112,97045.0,97044.0,0.42175554]
[1740161142503,0.00098112,97045.0,97044.0,0.42475554]
[1740161143056,0.00098112,97045.0,97044.0,5.22964454]
[1740161144256,0.00098112,97045.0,97044.0,5.23164454]
[1740161144752,0.00098112,97045.0,97044.0,5.24664454]
[1740161144945,1.2e-07,97045.0,97044.0,5.26064454]
[1740161145158,1.2e-07,97045.0,97044.0,0.57887124]
[1740161145364,1.2e-07,97045.0,97044.0,0.55187124]
[1740161145704,1.2e-07,97045.0,97044.0,0.57187124]
[1740161145912,1.2e-07,97045.0,97044.0,0.53887124]
[1740161146121,1.2e-07,97045.0,97044.0,0.28575554]
[1740161146318,1.2e-07,97045.0,97044.0,0.27121469]
[1740161146945,0.0053747,97045.0,97044.0,0.43575554]
[1740161147354,0.0053747,97045.0,97044.0,5.23969606]
[1740161147714,0.0053747,97045.0,97044.0,5.23269606]
[1740161147900,0.0053747,97045.0,97044.0,5.22538315]
[1740161148087,0.0063747,97045.0,97044.0,5.23838315]
[1740161148619,0.0053747,97045.0,97044.0,5.24538315]
[1740161148819,0.0053747,97045.0,97044.0,5.25238315]
[1740161149025,0.0063747,97045.0,97044.0,5.25938315]
[1740161149301,0.0053747,97045.0,97044.0,0.72139415]
[1740161149672,0.0063747,97045.0,97044.0,0.74839415]
[1740161149870,0.00100012,97045.0,97044.0,0.44749415]
[1740161150071,0.00100012,97045.0,97044.0,5.25238315]
[1740161150276,0.0008505,97077.0,97066.0,0.304534]
[1740161150501,0.0008505,97077.0,97066.0,0.40717969]
[1740161150713,0.0008505,97077.0,97066.0,4.96222054]
[1740161150879,0.0008505,97077.0,97066.0,0.42172054]
[1740161151455,8e-07,97089.0,97088.0,0.154499]
[1740161151659,0.0008507,97106.0,97105.0,0.31901185]
[1740161151859,0.0008507,97106.0,97105.0,1.43613917]
[1740161152128,0.00135835,97106.0,97105.0,1.43613917]
[1740161152360,5e-08,97109.0,97108.0,0.31900785]
[1740161152560,0.0504513,97137.0,97108.0,0.31900785]
[1740161152561,6.5e-07,97121.0,97116.0,0.154454]
[1740161152765,0.0008513,97137.0,97128.0,0.304435]
[1740161152987,0.00013064,97129.0,97128.0,1.43610317]
[1740161153326,0.0008513,97137.0,97133.0,0.33896785]
[1740161153526,0.0008514,97160.0,97133.0,0.33896785]
[1740161153527,0.0008514,97160.0,97138.0,0.324419]
[1740161153746,0.0008514,97160.0,97138.0,6.08624632]
[1740161153953,0.0008514,97160.0,97138.0,4.68064632]
[1740161154285,0.0008514,97160.0,97138.0,4.72941287]
[1740161154512,0.0008514,97160.0,97138.0,2.81541287]
[1740161154728,0.0008514,97160.0,97138.0,2.01968717]
[1740161154929,0.0008514,97160.0,97138.0,2.05391287]
[1740161155128,0.0008514,97160.0,97138.0,2.06091287]
[1740161155434,0.0008514,97160.0,97138.0,0.007]
[1740161155676,0.0018513,97139.0,97138.0,0.014]
[1740161155910,0.0008513,97139.0,97138.0,0.007]
[1740161156146,0.0008513,97139.0,97137.0,0.15442]
[1740161156346,0.0018513,97139.0,97138.0,0.12418654]
[1740161156553,0.0018513,97139.0,97138.0,0.27542162]
[1740161156760,0.0018513,97139.0,97138.0,0.27418654]
[1740161157362,0.0018513,97139.0,97138.0,0.27818654]
[1740161157568,0.00175983,97139.0,97138.0,0.27818654]
[1740161157955,0.00175983,97139.0,97138.0,6.08655717]
[1740161157956,0.00591455,97139.0,97138.0,6.08655717]
[1740161158156,0.00075983,97139.0,97138.0,6.12874271]
[1740161158367,0.00075983,97139.0,97138.0,6.11655717]
[1740161158572,0.00075983,97139.0,97138.0,6.14874271]
[1740161158740,0.00075983,97139.0,97138.0,6.14174271]
[1740161158949,0.00275983,97139.0,97138.0,6.15474271]
[1740161159153,0.00175983,97139.0,97138.0,4.97782141]
[1740161159561,0.00275983,97139.0,97138.0,4.98482141]
[1740161159797,0.0008514,97160.0,97159.0,0.02]
[1740161159997,0.0008514,97160.0,97159.0,1.92390081]
[1740161160178,0.00098159,97160.0,97159.0,1.95886851]
[1740161160379,0.00098159,97160.0,97159.0,1.96982851]
[1740161160667,5.9e-07,97164.0,97163.0,0.324379]
[1740161160867,5.9e-07,97164.0,97163.0,0.44156554]
[1740161161071,5.9e-07,97164.0,97163.0,0.42156554]
[1740161161308,5.9e-07,97164.0,97163.0,0.25264569]
[1740161161870,0.08300059,97164.0,97163.0,0.25964569]
[1740161162079,0.08400059,97164.0,97163.0,0.25964569]
[1740161162487,0.08400059,97164.0,97163.0,0.27818654]
[1740161162690,0.08400059,97164.0,97163.0,0.27118654]
[1740161162889,0.08400059,97164.0,97163.0,0.27618654]
[1740161163392,0.08400059,97164.0,97163.0,0.009]
[1740161163597,0.13120059,97164.0,97163.0,0.009]
[1740161164400,0.13020059,97164.0,97132.0,0.205905]
[1740161164607,0.13020059,97164.0,97163.0,0.002]
[1740161164830,0.13020059,97164.0,97148.0,0.00013019]
[1740161164831,0.13020059,97164.0,97155.0,0.205855]
[1740161165128,0.13020059,97164.0,97163.0,0.01854085]
[1740161165396,0.08300059,97164.0,97163.0,0.12242151]
[1740161165605,5.9e-07,97164.0,97163.0,0.2704213]
[1740161165781,5.9e-07,97164.0,97163.0,0.26918654]
[1740161166164,5.9e-07,97164.0,97163.0,0.35152198]
[1740161166797,5.9e-07,97164.0,97163.0,0.36248198]
[1740161166994,5.9e-07,97164.0,97163.0,0.38248198]
[1740161167299,5.9e-07,97164.0,97163.0,0.48346998]
[1740161167698,5.9e-07,97164.0,97163.0,0.48746998]
[1740161167907,5.9e-07,97164.0,97163.0,0.59206998]
[1740161168113,0.0150329,97169.0,97168.0,0.33891185]
[1740161168263,0.0781,97219.0,97203.0,0.154316]
[1740161168465,0.0781,97219.0,97203.0,0.27150254]
[1740161169065,0.0781,97219.0,97203.0,0.42150254]
[1740161169456,0.00128405,97204.0,97203.0,0.42150254]
[1740161170896,0.00128405,97204.0,97203.0,0.42650254]
[1740161171134,0.00128405,97204.0,97203.0,0.42150254]
[1740161171346,0.00128405,97204.0,97203.0,0.42850254]
[1740161171797,0.00128405,97204.0,97203.0,5.03340254]
[1740161172267,0.00128405,97204.0,97203.0,5.04740254]
[1740161172502,0.00128405,97204.0,97203.0,5.07852891]
[1740161172729,0.00128405,97204.0,97203.0,0.99402891]
[1740161172976,0.00128405,97204.0,97203.0,0.55990254]
[1740161173219,0.00128405,97204.0,97203.0,0.48485323]
[1740161173462,0.00128405,97204.0,97203.0,0.31599638]
[1740161173702,0.00128405,97204.0,97203.0,0.47031238]
[1740161174412,0.00128405,97204.0,97203.0,3.02493486]
[1740161174651,0.00128405,97204.0,97203.0,5.35113486]
[1740161174897,0.00128405,97204.0,97203.0,5.05753486]
[1740161175468,0.00128405,97204.0,97203.0,5.01518417]
[1740161175876,0.00128405,97204.0,97203.0,2.55298417]
[1740161176085,0.00128405,97204.0,97203.0,2.59177779]
[1740161176285,0.00128405,97204.0,97203.0,1.28112732]
[1740161176600,0.00128405,97204.0,97203.0,1.12412732]
[1740161177022,0.00128405,97204.0,97203.0,0.10964569]
[1740161177156,0.00128405,97204.0,97203.0,0.11664569]
[1740161177355,0.00128405,97204.0,97203.0,0.12418654]
[1740161177826,0.00128405,97204.0,97203.0,0.13118654]
[1740161179022,0.00128405,97204.0,97203.0,0.12418654]
[1740161179219,0.00128405,97204.0,97203.0,0.13118654]
[1740161179678,0.00128405,97204.0,97203.0,0.13242087]
[1740161180000,0.00128405,97204.0,97203.0,5.16961144]
[1740161180210,0.00128405,97204.0,97203.0,5.1683771]
[1740161180464,0.00128405,97204.0,97203.0,4.1884881]
[1740161180683,0.00128405,97204.0,97203.0,0.8710881]
[1740161181092,0.00128405,97204.0,97203.0,0.3634881]
[1740161183522,0.00128405,97204.0,97203.0,5.1683771]
[1740161184370,0.00128405,97204.0,97203.0,5.3226931]
[1740161185097,0.00128405,97204.0,97203.0,0.5038041]
[1740161185304,0.00128405,97204.0,97203.0,0.40696169]
[1740161185515,0.02,97251.0,97212.0,0.1543]
[1740161185717,0.154268,97233.0,97214.0,0.154298]
[1740161185919,0.154276,97229.0,97214.0,0.10264569]
[1740161186126,0.205689,97234.0,97214.0,0.10264569]
[1740161186338,0.15428,97226.0,97214.0,0.10264569]
[1740161186544,0.154273,97230.0,97214.0,0.10264569]
[1740161186731,0.00013016,97235.0,97215.0,0.154296]
[1740161186937,0.00013016,97235.0,97214.0,0.25694369]
[1740161187273,0.00013016,97235.0,97214.0,0.10264569]
[1740161187677,0.154268,97233.0,97214.0,0.10264569]
[1740161187944,0.154269,97233.0,97215.0,0.154297]
[1740161188154,0.00013016,97235.0,97216.0,0.11718654]
[1740161188354,0.00013016,97235.0,97234.0,0.154267]
[1740161188568,0.00013016,97235.0,97234.0,0.4226874]
[1740161188775,0.00013016,97235.0,97234.0,0.42145354]
[1740161189122,0.00013016,97235.0,97234.0,0.43175579]
[1740161189326,0.0008499,97258.0,97257.0,0.30423]
[1740161189510,0.0008499,97258.0,97257.0,0.42141654]
[1740161189714,0.0008499,97258.0,97257.0,5.22630554]
[1740161190388,0.0008499,97258.0,97257.0,1.24111654]
[1740161190758,0.0008499,97258.0,97257.0,1.25111654]
[1740161191211,0.0008499,97258.0,97257.0,1.27111654]
[1740161192086,0.0008499,97258.0,97257.0,1.24811654]
[1740161192327,0.0008499,97258.0,97257.0,0.12418654]
[1740161192565,0.0008499,97258.0,97257.0,0.11664569]
[1740161193282,0.0008499,97258.0,97257.0,0.10964569]
[1740161193506,0.0008499,97258.0,97257.0,0.11718654]
[1740161193718,0.0008499,97258.0,97257.0,0.12418654]
[1740161193964,0.0008499,97258.0,97257.0,0.13118654]
[1740161194214,0.0008499,97258.0,97257.0,5.24153909]
[1740161194459,0.0008499,97258.0,97257.0,0.28118654]
[1740161194692,0.0008499,97258.0,97257.0,0.26664569]
[1740161195184,0.0008499,97258.0,97257.0,0.28118654]
[1740161195429,0.0008499,97258.0,97257.0,0.13118654]
[1740161195672,0.0008499,97258.0,97257.0,0.11664569]
[1740161195915,0.0008499,97258.0,97257.0,0.13118654]
[1740161196179,0.0008499,97258.0,97257.0,0.28541654]
[1740161196655,0.0008499,97258.0,97257.0,0.27141654]
[1740161196865,0.0008499,97258.0,97257.0,0.43541654]
[1740161198812,0.0008499,97258.0,97257.0,1.70127241]
[1740161199046,0.0008499,97258.0,97257.0,0.51767241]
[1740161199298,7e-05,97270.0,97258.0,0.16454085]
[1740161199544,7e-05,97270.0,97261.0,0.16454085]
[1740161199776,0.154228,97258.0,97257.0,0.014]
[1740161199992,0.232628,97258.0,97257.0,0.014]
[1740161200222,0.232628,97258.0,97257.0,0.007]
[1740161200643,0.39309869,97258.0,97257.0,0.007]
[1740161200859,0.276271,97231.0,97230.0,0.2]
[1740161201273,0.37464569,97231.0,97184.0,0.030899]
[1740161201488,0.37464569,97231.0,97224.0,5.5e-07]
[1740161201489,0.324281,97225.0,97224.0,5.5e-07]
[1740161201727,0.02,97223.0,97161.0,1.01448163]
[1740161201936,0.205742,97209.0,97170.0,0.10264569]
[1740161202140,0.205744,97208.0,97170.0,0.10264569]
[1740161202346,0.205778,97192.0,97170.0,0.10264569]
[1740161202567,0.18324569,97209.0,97171.0,0.205822]
[1740161202794,0.0806,97209.0,97190.0,0.08225587]
[1740161203005,0.0806,97209.0,97202.0,0.01454085]
[1740161203248,0.076,97222.0,97204.0,0.01454085]
[1740161203501,0.076,97222.0,97206.0,0.01454085]
[1740161203713,0.003,97209.0,97208.0,0.01454085]
[1740161203918,0.003,97209.0,97208.0,0.27149454]
[1740161204144,0.00012999,97223.0,97222.0,0.154286]
[1740161204357,0.00012999,97223.0,97222.0,0.25693169]
[1740161204571,0.00012999,97223.0,97222.0,0.27147254]
[1740161205869,0.00012999,97223.0,97222.0,0.27547254]
[1740161206294,0.15441399,97223.0,97222.0,0.10664569]
[1740161206500,0.00012999,97223.0,97222.0,0.10964569]
[1740161206705,0.00012999,97223.0,97222.0,0.10664569]
[1740161206950,0.00012999,97223.0,97222.0,0.004]
[1740161207434,0.00012999,97223.0,97222.0,0.007]
[1740161208418,0.00012999,97223.0,97222.0,0.004]
[1740161208911,0.15441399,97223.0,97222.0,0.007]
[1740161209553,0.15441399,97223.0,97222.0,0.003]
[1740161210178,0.00012999,97223.0,97222.0,0.001]
[1740161210393,0.15441399,97223.0,97222.0,0.001]
[1740161210597,0.55115968,97223.0,97222.0,0.002]
[1740161210775,0.53115968,97223.0,97222.0,0.005]
[1740161210986,0.53115968,97223.0,97205.0,0.02042916]
[1740161210987,0.12422999,97223.0,97205.0,0.02042916]
[1740161211190,0.12422999,97223.0,97222.0,0.003]
[1740161211370,0.07622999,97223.0,97222.0,0.003]
[1740161211933,0.07622999,97223.0,97211.0,0.01454085]
[1740161212048,0.23351399,97223.0,97213.0,0.01454085]
[1740161212252,0.23351399,97223.0,97208.0,0.23225587]
[1740161212253,0.15429,97220.0,97215.0,0.01454085]
[1740161212456,0.08022999,97223.0,97208.0,0.15]
[1740161212657,0.07922999,97223.0,97212.0,0.1543]
[1740161212860,0.07922999,97223.0,97222.0,0.0016978]
[1740161213084,0.00312999,97223.0,97222.0,0.0026978]
[1740161213290,0.00312999,97223.0,97222.0,0.0016978]
[1740161213888,0.00012999,97223.0,97222.0,0.0016978]
[1740161214059,0.00012999,97223.0,97222.0,0.35237434]
[1740161214292,0.00012999,97223.0,97222.0,0.35314021]
[1740161215114,0.00012999,97223.0,97222.0,0.35214021]
[1740161215427,0.00112999,97223.0,97222.0,0.35814021]
[1740161215836,0.00112999,97223.0,97222.0,5.17002921]
[1740161216109,0.00112999,97223.0,97222.0,5.99032184]
[1740161216899,0.00112999,97223.0,97222.0,1.37962184]
[1740161217127,0.00112999,97223.0,97222.0,6.18451084]
[1740161217289,0.00112999,97223.0,97222.0,5.80982184]
[1740161217466,0.00112999,97223.0,97222.0,1.78568099]
[1740161217668,0.00112999,97223.0,97222.0,0.35059936]
[1740161217873,0.0008488,97258.0,97226.0,0.154278]
[1740161218075,0.154261,97238.0,97227.0,0.40692269]
[1740161218258,0.154263,97237.0,97227.0,0.10264569]
[1740161218461,0.00097886,97258.0,97227.0,0.10264569]
[1740161218462,0.154275,97229.0,97227.0,0.10264569]
[1740161218670,0.001,97223.0,97222.0,0.0156978]
[1740161219090,0.001,97223.0,97222.0,0.0086978]
[1740161219539,0.001,97223.0,97222.0,0.0156978]
[1740161219739,0.001,97223.0,97222.0,0.0086978]
[1740161219990,0.205696,97231.0,97222.0,0.0086978]
[1740161219991,0.154274,97230.0,97222.0,0.0016978]
[1740161220190,0.253268,97244.0,97227.0,0.007]
[1740161220387,0.154275,97229.0,97227.0,0.007]
[1740161220635,0.154275,97229.0,97222.0,0.0076978]
[1740161220794,0.15428,97226.0,97222.0,0.0016978]
[1740161220990,0.154278,97227.0,97222.0,0.0076978]
[1740161221200,0.154278,97227.0,97222.0,0.0116978]
[1740161221460,0.154283,97224.0,97222.0,0.0127978]
[1740161221658,0.205676,97240.0,97222.0,0.0067978]
[1740161221873,0.0476,97244.0,97226.0,0.08225587]
[1740161222078,0.252334,97261.0,97236.0,0.08225587]
[1740161222244,0.01148,97289.0,97256.0,0.154232]
[1740161222245,0.0961329,97267.0,97256.0,0.154232]
[1740161222468,0.0961329,97267.0,97257.0,0.15546374]
[1740161222670,0.00097886,97258.0,97257.0,0.40687569]
[1740161222845,0.00097886,97258.0,97257.0,0.42141654]
[1740161223248,0.00197886,97258.0,97257.0,0.27141654]
[1740161223680,0.00097886,97258.0,97257.0,0.11718654]
[1740161224035,0.00097886,97258.0,97257.0,0.12418654]
[1740161224235,0.00097886,97258.0,97257.0,0.10964569]
[1740161224439,0.00097886,97258.0,97257.0,0.007]
[1740161224660,0.00097886,97258.0,97247.0,0.01454085]
[1740161224867,0.00097886,97258.0,97246.0,0.08225587]
[1740161224868,0.00097886,97258.0,97257.0,0.17477085]
[1740161225071,0.00097886,97258.0,97257.0,0.42865022]
[1740161225280,0.00097886,97258.0,97257.0,0.42741654]
[1740161225489,0.00097886,97258.0,97257.0,0.43241654]
[1740161225918,0.00097886,97258.0,97257.0,0.42741654]
[1740161226139,0.00097886,97258.0,97257.0,0.42641654]
[1740161226427,0.00097886,97258.0,97257.0,0.26718654]
[1740161226636,0.00097886,97258.0,97257.0,0.12218654]
[1740161226841,0.00097886,97258.0,97257.0,0.012]
[1740161227057,0.00097886,97258.0,97244.0,0.154249]
[1740161227262,0.00097886,97258.0,97249.0,0.01454085]
[1740161227437,0.00097886,97258.0,97257.0,0.012]
[1740161227859,0.00097886,97258.0,97257.0,0.005]
[1740161228115,0.00097886,97258.0,97257.0,0.007]
[1740161228525,0.00097886,97258.0,97257.0,0.12418654]
[1740161228693,0.00097886,97258.0,97257.0,0.27341654]
[1740161228902,0.00097886,97258.0,97257.0,0.27444479]
[1740161229069,0.00097886,97258.0,97257.0,0.27244479]
[1740161229270,0.00097886,97258.0,97257.0,0.27141654]
[1740161229664,0.00097886,97258.0,97257.0,0.27341654]
[1740161229864,0.00097886,97258.0,97257.0,5.94179817]
[1740161230068,0.00097886,97258.0,97257.0,6.29328717]
[1740161230329,8.6e-07,97258.0,97257.0,6.29328717]
[1740161230565,8.6e-07,97258.0,97257.0,1.4986289]
[1740161230745,8.6e-07,97258.0,97257.0,1.57888477]
[1740161230992,8.6e-07,97258.0,97257.0,1.56865404]
[1740161231267,8.6e-07,97258.0,97257.0,1.57065404]
[1740161231672,8.6e-07,97258.0,97257.0,0.50767241]
[1740161232206,8.6e-07,97258.0,97257.0,0.50567241]
[1740161232417,8.6e-07,97258.0,97257.0,0.51067241]
[1740161232679,8.6e-07,97258.0,97257.0,0.51767241]
[1740161232922,8.6e-07,97258.0,97257.0,0.51067241]
[1740161233146,8.6e-07,97258.0,97257.0,1.53215404]
[1740161233404,8.6e-07,97258.0,97257.0,1.52515404]
[1740161233655,8.6e-07,97258.0,97257.0,1.53215404]
[1740161234352,8.6e-07,97258.0,97257.0,2.54678275]
[1740161234704,8.6e-07,97258.0,97257.0,2.66966935]
[1740161235262,8.6e-07,97258.0,97257.0,2.71816935]
[1740161235798,8.6e-07,97258.0,97257.0,0.68905901]
[1740161236013,0.0146329,97267.0,97266.0,0.304216]
[1740161236197,0.0146329,97267.0,97266.0,4.44340254]
[1740161236396,0.0146329,97267.0,97266.0,4.44180254]
[1740161236603,0.0146329,97267.0,97266.0,1.54510254]
[1740161237019,0.0146329,97267.0,97266.0,2.55958417]
[1740161237372,0.0146329,97267.0,97266.0,0.88006169]
[1740161238047,0.0146329,97267.0,97266.0,0.42086169]
[1740161238251,0.0146329,97267.0,97266.0,4.82328417]
[1740161238591,9e-07,97270.0,97269.0,0.304211]
[1740161238744,9e-07,97270.0,97269.0,0.42139754]
[1740161239735,9e-07,97270.0,97269.0,0.43539754]
[1740161239938,0.0008489,97302.0,97270.0,2.14004085]